bitfinex-derivatives/quotes_SOLF0:USTF0_20250703
["timestamp","ask_amount","ask_price","bid_price","bid_amount"]
[1751578539047,6.5474,152.68,152.67,44.62]
[1751578539251,9.07088471,152.68,152.67,233.02]
[1751578539453,9.07088471,152.68,152.67,44.62]
[1751578540051,6.5478,152.67,152.65,9.62259192]
[1751578540248,6.5478,152.67,152.65,198.02259192]
[1751578540951,6.5478,152.67,152.65,9.62259192]
[1751578541152,6.5478,152.67,152.66,188.4]
[1751578545557,6.5478,152.67,152.66,188.42]
[1751578547154,6.5478,152.67,152.65,9.62259192]
[1751578547350,6.5478,152.67,152.66,188.44]
[1751578549555,6.5478,152.67,152.66,3.07409192]
[1751578550260,6.5478,152.67,152.65,194.9885]
[1751578550559,6.5478,152.67,152.65,198.06259192]
[1751578551865,6.5478,152.67,152.66,188.44]
[1751578560666,6.5478,152.67,152.65,9.62259192]
[1751578560969,6.5483,152.66,152.65,191.51409192]
[1751578561458,6.5483,152.66,152.65,188.44]
[1751578562063,6.5481,152.67,152.65,188.44]
[1751578563269,6.5481,152.67,152.65,191.51409192]
[1751578566373,6.5476,152.68,152.66,3.07409192]
[1751578567072,6.5478,152.67,152.66,3.07409192]
[1751578569472,6.5478,152.67,152.65,198.06259192]
[1751578578575,6.5478,152.67,152.66,6.5483]
[1751578578775,9.06751956,152.67,152.66,6.5483]
[1751578580485,2.51971956,152.67,152.66,6.5483]
[1751578581283,7.23124231,152.67,152.66,6.5483]
[1751578581680,7.23124231,152.67,152.66,9.62239192]
[1751578582378,4.71177407,152.71,152.66,3.07409192]
[1751578582580,3.07409192,152.74,152.7,3.07409192]
[1751578582879,18.64574977,152.73,152.7,191.49409192]
[1751578583079,12.10004977,152.72,152.7,198.03852536]
[1751578583383,2.52188156,152.71,152.7,198.03852536]
[1751578583779,2.52188156,152.71,152.7,194.9664]
[1751578584681,2.52188156,152.71,152.7,198.03852536]
[1751578589381,2.52188156,152.71,152.7,194.9664]
[1751578589587,2.52188156,152.71,152.7,188.42]
[1751578592490,9.06798156,152.71,152.7,188.42]
[1751578595986,10.20021992,152.71,152.5,19.66]
[1751578596188,3.07366962,152.62,152.54,3.07366962]
[1751578596485,3.07366962,152.6,152.54,3.07366962]
[1751578596689,2.52188156,152.59,152.54,3.07366962]
[1751578596885,4.56620384,152.6,152.56,3.07366962]
[1751578597086,3.07366962,152.62,152.56,3.07366962]
[1751578597288,2.52129211,152.61,152.56,3.07366962]
[1751578597487,2.52129211,152.6,152.56,3.07366962]
[1751578597690,3.07366962,152.62,152.56,3.07366962]
[1751578597885,2.52109468,152.61,152.56,3.07366962]
[1751578598085,6.552,152.58,152.56,193.89366962]
[1751578598985,3.07366962,152.62,152.56,193.89366962]
[1751578599189,2.51946427,152.61,152.56,190.82]
[1751578599392,5.59313389,152.6,152.56,193.89366962]
[1751578599691,6.5521,152.57,152.56,193.89366962]
[1751578599887,3.07366962,152.58,152.53,44.6]
[1751578600193,6.5534,152.54,152.53,44.6]
[1751578601389,3.07366962,152.54,152.48,47.69366962]
[1751578601595,52.98201004,152.6,152.48,3.07366962]
[1751578601596,3.07366962,152.52,152.48,3.07366962]
[1751578601782,6.5554,152.5,152.47,191.06]
[1751578602193,6.555,152.51,152.47,197.6162]
[1751578602491,6.12351004,152.57,152.46,49.43400656]
[1751578602689,12.70398767,152.56,152.49,4.81400656]
[1751578602992,6.5547,152.51,152.48,191.26]
[1751578603182,4.81400656,152.56,152.48,191.46]
[1751578603386,6.5541,152.53,152.49,11.36950656]
[1751578603586,2.2385,152.58,152.51,4.81400656]
[1751578603785,6.5531,152.55,152.52,6.5543]
[1751578603987,2.2385,152.58,152.52,191.56]
[1751578604390,7.60828435,152.58,152.52,191.56]
[1751578604590,2.2385,152.58,152.52,191.56]
[1751578605393,2.2385,152.58,152.52,198.1141]
[1751578606488,6.553,152.56,152.52,198.1141]
[1751578607093,6.5532,152.55,152.52,198.1141]
[1751578612796,6.5528,152.56,152.53,11.36466972]
[1751578613498,6.5528,152.56,152.53,4.81086972]
[1751578613792,6.5523,152.57,152.53,4.81086972]
[1751578613992,44.62,152.6,152.53,7.17846972]
[1751578614198,7.10656972,152.63,152.55,4.81086972]
[1751578614599,7.10656972,152.63,152.56,6.5524]
[1751578615099,6.5517,152.59,152.56,6.5524]
[1751578618101,6.5511,152.6,152.57,6.5519]
[1751578618299,6.5511,152.6,152.57,4.81086972]
[1751578618494,44.64,152.64,152.57,50.45086972]
[1751578618699,4.81086972,152.65,152.57,50.45086972]
[1751578619000,6.5507,152.61,152.58,6.5515]
[1751578620602,6.5507,152.61,152.59,6.5513]
[1751578620801,4.81086972,152.67,152.59,4.81086972]
[1751578621202,4.81086972,152.67,152.6,6.5507]
[1751578621998,4.81086972,152.67,152.61,6.5505]
[1751578622404,6.549,152.65,152.62,6.5497]
[1751578628802,6.5493,152.64,152.62,6.5497]
[1751578632705,6.549,152.65,152.62,6.5497]
[1751578632912,6.549,152.65,152.63,6.5496]
[1751578633506,6.549,152.65,152.62,6.5498]
[1751578633707,6.5493,152.64,152.62,6.5498]
[1751578635215,7.13256972,152.68,152.62,6.5498]
[1751578635612,6.5489,152.65,152.63,6.5496]
[1751578637013,6.5485,152.66,152.62,45.62]
[1751578637408,6.5485,152.66,152.63,6.5492]
[1751578639309,6.5485,152.66,152.64,6.5492]
[1751578639903,6.5488,152.65,152.63,6.5495]
[1751578640103,2.32342302,152.69,152.63,6.5495]
[1751578640504,6.5486,152.66,152.63,6.5495]
[1751578642216,6.5486,152.66,152.64,6.5492]
[1751578643116,6.5482,152.67,152.64,6.5492]
[1751578643818,6.5482,152.67,152.65,6.5488]
[1751578646623,6.5477,152.68,152.65,6.5488]
[1751578646812,52.76556972,152.72,152.65,4.81086972]
[1751578647017,5.41420286,152.71,152.65,4.81086972]
[1751578647218,6.5471,152.69,152.65,4.81086972]
[1751578647723,6.5471,152.69,152.66,6.5483]
[1751578648718,6.5467,152.7,152.65,4.81086972]
[1751578648924,6.5467,152.7,152.67,45.44]
[1751578649127,4.81086972,152.74,152.67,50.25086972]
[1751578649324,4.81086972,152.74,152.69,6.5468]
[1751578649325,6.5461,152.72,152.69,6.5468]
[1751578649827,6.5463,152.71,152.69,6.5468]
[1751578653130,6.546,152.72,152.69,6.5468]
[1751578655928,6.5462,152.71,152.69,6.5468]
[1751578657427,6.5462,152.71,152.68,4.81086972]
[1751578658731,6.5462,152.71,152.69,6.547]
[1751578658926,6.546,152.72,152.69,6.547]
[1751578659530,6.546,152.72,152.7,6.5465]
[1751578664732,6.546,152.72,152.67,47.6381]
[1751578664937,5.45256594,152.71,152.67,45.44]
[1751578665131,6.91733911,152.73,152.67,45.44]
[1751578665132,10.26343566,152.7,152.67,45.44]
[1751578665437,5.45256594,152.69,152.63,45.42]
[1751578665731,2.34122932,152.69,152.63,45.42]
[1751578665940,6.5488,152.66,152.63,45.42]
[1751578667435,6.5488,152.66,152.63,235.92]
[1751578667629,6.5488,152.66,152.64,6.549]
[1751578670028,6.5488,152.66,152.63,242.4694]
[1751578670429,6.5488,152.66,152.63,242.3894]
[1751578676344,6.5488,152.66,152.64,6.5492]
[1751578677835,6.5488,152.66,152.63,242.3894]
[1751578681642,6.5488,152.66,152.63,235.84]
[1751578681842,6.5488,152.66,152.64,6.5492]
[1751578685246,6.5481,152.67,152.65,6.5488]
[1751578685452,6.5481,152.67,152.66,190.08]
[1751578685858,4.52549966,152.7,152.64,11.35301132]
[1751578685859,6.5483,152.66,152.64,11.35301132]
[1751578686151,6.5483,152.66,152.65,190.06]
[1751578688451,6.5483,152.66,152.64,11.35301132]
[1751578688644,6.5483,152.66,152.65,190.0]
[1751578691154,6.5483,152.66,152.65,190.0]
[1751578691759,6.5483,152.66,152.65,193.07408387]
[1751578697360,6.5481,152.67,152.65,199.62288387]
[1751578699358,4.48464748,152.69,152.65,199.62288387]
[1751578699359,4.48464748,152.69,152.66,3.07408387]
[1751578699661,58.8739,152.85,152.68,3.07408387]
[1751578699662,4.48464748,152.7,152.68,3.07408387]
[1751578699860,4.48464748,152.71,152.69,189.72]
[1751578700161,7.78568935,152.7,152.69,189.72]
[1751578700362,5.44336652,152.7,152.69,189.72]
[1751578701360,5.44336652,152.7,152.69,199.34118387]
[1751578701862,5.44336652,152.7,152.69,196.2671]
[1751578703265,6.5459,152.72,152.69,196.2671]
[1751578703464,5.44986851,152.71,152.69,196.2671]
[1751578703665,6.5459,152.72,152.69,196.2671]
[1751578703866,5.44986851,152.71,152.69,196.2671]
[1751578704062,5.45008772,152.7,152.69,196.2671]
[1751578705463,6.5462,152.71,152.69,196.2671]
[1751578708977,6.5459,152.72,152.69,196.2671]
[1751578709170,5.46578342,152.71,152.69,196.2671]
[1751578709469,6.5459,152.72,152.69,196.2671]
[1751578709672,7.81144659,152.71,152.69,196.2671]
[1751578709876,6.5462,152.71,152.69,196.2671]
[1751578710074,4.39052081,152.74,152.7,6.5464]
[1751578710275,12.20167381,152.73,152.7,6.5464]
[1751578710476,7.811153,152.72,152.7,6.5464]
[1751578710677,4.39013856,152.74,152.7,6.5464]
[1751578710879,12.20028733,152.73,152.7,6.5464]
[1751578711072,7.81014877,152.72,152.7,6.5464]
[1751578711375,4.38945667,152.74,152.7,6.5464]
[1751578711576,7.80874754,152.73,152.7,6.5464]
[1751578711776,7.80874754,152.72,152.7,6.5464]
[1751578712074,6.5454,152.73,152.7,6.5464]
[1751578712276,7.81301442,152.72,152.7,6.5464]
[1751578712475,6.11179408,152.75,152.7,6.5464]
[1751578712676,12.21463551,152.74,152.7,6.5464]
[1751578712878,7.81738704,152.73,152.7,6.5464]
[1751578713075,7.81738704,152.72,152.7,6.5464]
[1751578713275,4.39724847,152.74,152.7,6.5464]
[1751578713475,7.81637349,152.73,152.71,6.5459]
[1751578713781,6.11179408,152.76,152.72,189.42]
[1751578713973,12.22003715,152.75,152.72,189.42]
[1751578714181,14.36062234,152.74,152.72,189.42]
[1751578714381,7.81542234,152.73,152.72,189.42]
[1751578716181,5.46610154,152.73,152.72,189.42]
[1751578717884,5.46610154,152.73,152.72,195.9658]
[1751578718287,6.5452,152.74,152.72,195.9658]
[1751578721888,6.5452,152.74,152.72,199.03706565]
[1751578727293,6.5453,152.73,152.72,189.28]
[1751578727994,8.89566256,152.74,152.72,189.28]
[1751578728193,6.5452,152.74,152.72,189.28]
[1751578729494,6.5452,152.74,152.72,195.8257]
[1751578730390,6.5452,152.74,152.72,198.89696565]
[1751578736397,5.47655895,152.73,152.69,2.3524]
[1751578736597,3.07217973,152.73,152.69,5.42457973]
[1751578737501,6.5465,152.71,152.69,5.42457973]
[1751578738395,6.5465,152.71,152.69,194.60457973]
[1751578738601,6.5465,152.71,152.69,201.15157973]
[1751578738997,6.5465,152.71,152.69,11.97157973]
[1751578739198,6.5465,152.71,152.69,201.11157973]
[1751578741899,6.5465,152.71,152.69,11.97157973]
[1751578742100,6.5465,152.71,152.69,201.09157973]
[1751578744403,6.546,152.72,152.7,3.07217973]
[1751578744605,5.49057096,152.71,152.7,3.07217973]
[1751578747006,5.49057096,152.71,152.7,192.11217973]
[1751578749108,7.84310768,152.71,152.7,192.11217973]
[1751578749304,7.84310768,152.71,152.7,3.07217973]
[1751578749508,7.84310768,152.71,152.7,192.11217973]
[1751578749708,7.84310768,152.71,152.7,192.11232382]
[1751578750610,5.49057096,152.71,152.7,189.04]
[1751578750811,14.38958558,152.71,152.7,189.04]
[1751578757514,6.5466,152.7,152.69,2.3524]
[1751578757719,10.91884092,152.7,152.66,3.07302789]
[1751578757920,5.49057096,152.69,152.66,192.11302789]
[1751578758218,3.07302789,152.7,152.66,192.11302789]
[1751578758219,6.5477,152.68,152.66,3.07302789]
[1751578758417,6.5477,152.68,152.66,192.11302789]
[1751578758812,5.49625473,152.67,152.66,3.07302789]
[1751578759016,5.49625473,152.67,152.66,192.13302789]
[1751578760520,7.85137442,152.67,152.66,192.13302789]
[1751578761822,5.49625473,152.67,152.66,198.68132789]
[1751578762523,6.5472,152.69,152.66,198.68132789]
[1751578762824,7.84082084,152.68,152.67,3.07302789]
[1751578763021,5.48716368,152.68,152.67,3.07302789]
[1751578763516,12.03476368,152.68,152.66,195.6083]
[1751578763721,6.5476,152.68,152.67,3.07302789]
[1751578763920,12.03371259,152.68,152.67,3.07302789]
[1751578764323,12.03371259,152.68,152.66,198.68132789]
[1751578764520,6.5476,152.68,152.66,198.68132789]
[1751578767925,6.5476,152.68,152.67,3.07302789]
[1751578768119,8.89525925,152.68,152.67,3.07302789]
[1751578768326,12.01201804,152.68,152.67,3.07302789]
[1751578768725,5.46441804,152.68,152.67,9.62092789]
[1751578768925,5.46441804,152.68,152.67,3.07302789]
[1751578769530,6.5474,152.69,152.67,3.07302789]
[1751578772432,6.5474,152.69,152.66,198.68112789]
[1751578773927,3.07360048,152.7,152.66,198.68170048]
[1751578774133,7.8135124,152.69,152.66,198.68170048]
[1751578774330,5.46709443,152.68,152.66,198.68170048]
[1751578774530,6.5477,152.68,152.66,198.68170048]
[1751578774930,6.5477,152.68,152.66,195.6081]
[1751578780134,6.5477,152.68,152.66,198.68170048]
[1751578782840,6.5477,152.68,152.66,189.06]
[1751578786343,6.5477,152.68,152.66,192.13360048]
[1751578787845,6.5477,152.68,152.66,3.07360048]
[1751578788047,6.5477,152.68,152.66,192.13360048]
[1751578789445,6.5477,152.68,152.66,189.06]
[1751578792343,3.07360048,152.7,152.66,189.06]
[1751578792551,6.5479,152.67,152.66,189.06]
[1751578793347,6.5479,152.67,152.66,189.04]
[1751578795349,12.01646013,152.67,152.66,189.04]
[1751578800150,5.46856013,152.67,152.66,195.5883]
[1751578800450,7.82388522,152.67,152.65,189.04]
[1751578800654,12.01716013,152.66,152.64,44.9]
[1751578800843,5.47154501,152.65,152.64,44.9]
[1751578801048,5.47154501,152.65,152.61,7.79023362]
[1751578801349,7.82758257,152.64,152.61,5.41133362]
[1751578801548,3.07383362,152.67,152.61,5.41133362]
[1751578801549,9.18843893,152.67,152.63,3.07383362]
[1751578801851,6.5488,152.65,152.63,3.07383362]
[1751578802051,7.82712894,152.64,152.63,3.07383362]
[1751578802555,14.37632894,152.64,152.63,3.07383362]
[1751578803555,14.37632894,152.64,152.62,192.11383362]
[1751578803754,5.47116735,152.63,152.62,189.04]
[1751578803952,5.47116735,152.63,152.62,192.11383362]
[1751578806167,6.5492,152.64,152.62,198.66393362]
[1751578812559,6.549,152.65,152.62,198.66393362]
[1751578812759,5.44845382,152.64,152.62,198.66393362]
[1751578813063,6.549,152.65,152.62,198.66393362]
[1751578813263,5.44809593,152.64,152.62,198.66393362]
[1751578813458,6.549,152.65,152.62,198.66393362]
[1751578813659,5.44793197,152.64,152.62,198.66393362]
[1751578813959,6.549,152.65,152.62,198.66393362]
[1751578814160,5.44793197,152.64,152.62,198.66393362]
[1751578814358,6.549,152.65,152.62,198.66393362]
[1751578814559,5.44310091,152.64,152.62,198.66393362]
[1751578814752,9.19149205,152.68,152.62,192.11383362]
[1751578814958,7.78828371,152.67,152.62,192.11383362]
[1751578815263,7.78828371,152.66,152.63,6.5495]
[1751578815463,3.07383362,152.68,152.63,6.5495]
[1751578815665,3.07383362,152.68,152.62,192.11383362]
[1751578815666,7.78774582,152.67,152.62,192.11383362]
[1751578815859,11.99096009,152.66,152.63,6.5495]
[1751578816060,6.5483,152.66,152.63,6.5495]
[1751578816461,6.5483,152.66,152.64,9.62303362]
[1751578816661,6.5477,152.68,152.65,3.07383362]
[1751578816868,5.44724049,152.67,152.65,3.07383362]
[1751578817061,6.5477,152.68,152.65,9.62233362]
[1751578817261,5.44716174,152.67,152.65,9.62233362]
[1751578817567,6.5477,152.68,152.65,9.62233362]
[1751578817757,5.44749623,152.67,152.65,9.62233362]
[1751578817961,6.5477,152.68,152.65,9.62233362]
[1751578818268,5.44749617,152.67,152.66,9.62213362]
[1751578818467,6.5473,152.69,152.66,9.62213362]
[1751578818766,7.7954171,152.68,152.66,9.62213362]
[1751578818966,6.5473,152.69,152.66,9.62213362]
[1751578819167,7.7954171,152.68,152.66,9.62213362]
[1751578819468,6.5473,152.69,152.66,9.62213362]
[1751578819667,7.79555158,152.68,152.66,9.62213362]
[1751578819868,6.5473,152.69,152.66,9.62213362]
[1751578820070,7.79555158,152.68,152.66,9.62213362]
[1751578820269,5.4477021,152.67,152.66,9.62213362]
[1751578820568,6.5473,152.69,152.66,9.62213362]
[1751578820770,7.79568844,152.68,152.66,9.62213362]
[1751578820969,6.5473,152.69,152.66,9.62213362]
[1751578821168,7.79568844,152.68,152.66,9.62213362]
[1751578821372,5.44779727,152.67,152.66,9.62213362]
[1751578828477,5.44779727,152.67,152.66,6.5483]
[1751578828974,5.44779727,152.67,152.66,9.62213362]
[1751578829572,5.44779727,152.67,152.66,6.5483]
[1751578830482,5.44779727,152.67,152.64,192.07383362]
[1751578830683,3.07383362,152.68,152.64,192.07383362]
[1751578830879,6.5486,152.66,152.64,189.0]
[1751578831082,5.46700231,152.65,152.64,189.0]
[1751578832585,12.01580231,152.65,152.64,189.0]
[1751578832884,12.01580231,152.65,152.63,9.62323362]
[1751578833081,6.5488,152.65,152.63,9.62323362]
[1751578839289,6.5486,152.66,152.64,9.62303362]
[1751578839488,5.45983568,152.65,152.64,9.62303362]
[1751578841085,5.45983568,152.65,152.64,3.07383362]
[1751578841290,5.45983568,152.65,152.63,9.62323362]
[1751578841486,6.5486,152.66,152.63,9.62323362]
[1751578841692,5.4605244,152.65,152.63,9.62323362]
[1751578841888,6.5486,152.66,152.63,9.62323362]
[1751578842087,5.4605244,152.65,152.63,9.62323362]
[1751578842392,6.5486,152.66,152.63,198.60323362]
[1751578842687,5.46091296,152.65,152.64,6.5492]
[1751578844292,5.46091296,152.65,152.64,9.62303362]
[1751578844589,5.46179064,152.65,152.64,9.62303362]
[1751578846499,5.46179064,152.65,152.64,3.07383362]
[1751578847394,5.46179064,152.65,152.63,192.05383362]
[1751578847595,6.5486,152.66,152.64,6.5492]
[1751578847892,12.00652934,152.65,152.63,192.05383362]
[1751578848093,6.5488,152.65,152.63,192.05383362]
[1751578848694,6.5488,152.65,152.63,198.60323362]
[1751578848895,6.5486,152.66,152.63,198.60323362]
[1751578849196,5.45796954,152.65,152.63,198.60323362]
[1751578849493,6.5488,152.65,152.63,198.60323362]
[1751578851697,6.5488,152.65,152.63,9.62323362]
[1751578851891,6.5488,152.65,152.63,198.60323362]
[1751578854694,6.5488,152.65,152.63,9.62323362]
[1751578854993,6.5488,152.65,152.64,188.96]
[1751578855194,14.36621288,152.65,152.64,188.96]
[1751578862200,18.86894139,152.65,152.64,188.96]
[1751578863906,14.36621288,152.65,152.64,188.96]
[1751578864201,18.86853154,152.65,152.64,188.96]
[1751578865107,6.5493,152.64,152.63,188.94]
[1751578865403,14.36671288,152.64,152.62,54.46373362]
[1751578865603,6.5493,152.64,152.63,188.94]
[1751578865806,14.36460998,152.64,152.63,188.94]
[1751578867005,14.36458286,152.64,152.63,188.94]
[1751578870703,7.81528286,152.64,152.63,188.94]
[1751578870896,7.81528286,152.64,152.63,198.56343362]
[1751578871096,5.45752114,152.64,152.63,198.56343362]
[1751578872307,7.8143398,152.64,152.63,188.94]
[1751578872507,7.8143398,152.64,152.63,192.01383362]
[1751578873308,7.8143398,152.64,152.63,198.56343362]
[1751578873508,6.5479,152.67,152.63,192.01383362]
[1751578873710,6.12271498,152.7,152.66,3.07383362]
[1751578873901,6.12271498,152.73,152.69,3.07383362]
[1751578874106,14.25837664,152.72,152.7,188.94]
[1751578874406,6.12271498,152.76,152.71,194.17750755]
[1751578874602,14.54876884,152.75,152.72,3.07070755]
[1751578874800,9.9473461,152.74,152.72,3.07070755]
[1751578875112,5.44670854,152.73,152.72,3.07070755]
[1751578877310,6.5451,152.74,152.72,3.07070755]
[1751578877711,6.5451,152.74,152.72,9.61640755]
[1751578878614,6.5451,152.74,152.72,3.07070755]
[1751578879005,6.5451,152.74,152.71,200.72350755]
[1751578879210,3.07070755,152.74,152.71,191.1068]
[1751578879406,3.07070755,152.74,152.7,6.5465]
[1751578879407,8.53968031,152.73,152.69,188.86]
[1751578879608,5.46773814,152.72,152.69,188.86]
[1751578879812,3.07217751,152.73,152.69,188.86]
[1751578880013,5.46773814,152.72,152.69,188.86]
[1751578880217,6.5465,152.71,152.69,188.86]
[1751578881217,6.5466,152.7,152.69,188.86]
[1751578881512,6.5466,152.7,152.68,54.41947751]
[1751578881718,6.5466,152.7,152.69,188.86]
[1751578883021,6.5466,152.7,152.68,47.87217751]
[1751578883219,6.5466,152.7,152.69,188.86]
[1751578884521,6.5466,152.7,152.69,191.93217751]
[1751578884724,6.5464,152.71,152.69,191.93217751]
[1751578887820,6.5464,152.71,152.69,191.93266529]
[1751578888121,3.07266529,152.71,152.69,188.84]
[1751578888821,3.07266529,152.7,152.68,233.64]
[1751578889527,6.547,152.69,152.68,233.64]
[1751578890522,6.547,152.69,152.68,44.8]
[1751578890729,6.547,152.69,152.68,233.64]
[1751578892323,6.547,152.69,152.68,44.8]
[1751578892623,5.52735616,152.69,152.64,47.0339]
[1751578892826,3.07491321,152.65,152.61,3.07491321]
[1751578893028,3.07491321,152.65,152.62,188.84]
[1751578893328,6.5496,152.64,152.62,188.84]
[1751578893721,3.07491321,152.65,152.62,188.84]
[1751578894027,6.5496,152.63,152.61,3.07491321]
[1751578894224,6.5496,152.63,152.62,188.84]
[1751578894923,9.00089056,152.64,152.62,191.91491321]
[1751578895126,2.45149056,152.67,152.63,3.07491321]
[1751578895328,5.44702296,152.68,152.66,3.07491321]
[1751578895526,2.45138794,152.67,152.66,3.07491321]
[1751578895722,2.45138794,152.67,152.65,188.86]
[1751578895927,2.45138794,152.66,152.65,188.86]
[1751578896527,2.45138794,152.66,152.65,195.4087]
[1751578897729,6.5481,152.67,152.65,195.4087]
[1751578899728,6.5476,152.68,152.65,195.4087]
[1751578900326,6.5476,152.68,152.66,6.5483]
[1751578901037,6.5473,152.69,152.67,6.5478]
[1751578901439,8.97442958,152.69,152.67,6.5478]
[1751578901730,6.5473,152.69,152.67,6.5478]
[1751578902125,8.97442958,152.69,152.67,6.5478]
[1751578902328,6.5473,152.69,152.67,6.5478]
[1751578913137,5.45331281,152.68,152.67,6.5478]
[1751578913439,5.45331281,152.68,152.66,6.5481]
[1751578913640,6.5473,152.69,152.66,6.5481]
[1751578917739,6.5473,152.69,152.67,3.07339961]
[1751578920238,5.44793658,152.68,152.67,3.07339961]
[1751578921341,5.44793658,152.68,152.67,9.62129961]
[1751578921543,7.88167144,152.68,152.67,9.62129961]
[1751578922838,7.88233426,152.68,152.67,9.62129961]
[1751578923442,7.88233426,152.68,152.67,3.07339961]
[1751578935454,7.88233426,152.68,152.67,9.62129961]
[1751578940255,7.88233426,152.68,152.67,9.62117631]
[1751578945352,7.88233426,152.68,152.67,6.5479]
[1751578945657,21.38976615,152.68,152.65,44.78]
[1751578945859,21.38976615,152.68,152.6,565.62]
[1751578945860,3.07327631,152.66,152.61,3.07327631]
[1751578946058,6.5494,152.64,152.61,243.12347631]
[1751578946258,7.88233426,152.63,152.61,243.12347631]
[1751578946458,3.07327631,152.65,152.61,243.12347631]
[1751578946661,7.89854706,152.64,152.61,243.12347631]
[1751578946861,7.89854706,152.63,152.61,243.12347631]
[1751578947158,2.43913504,152.62,152.61,243.12347631]
[1751578947359,6.5494,152.64,152.61,243.12347631]
[1751578947559,7.89422612,152.63,152.61,243.12347631]
[1751578947753,6.5494,152.64,152.61,243.12347631]
[1751578947952,7.89422612,152.63,152.61,243.12347631]
[1751578948156,6.5494,152.64,152.61,243.12347631]
[1751578948359,7.89274465,152.63,152.61,243.12347631]
[1751578948559,6.5494,152.64,152.61,243.12347631]
[1751578948759,7.89172393,152.63,152.61,243.12347631]
[1751578948962,6.5494,152.64,152.61,243.14347631]
[1751578949162,7.8917844,152.63,152.61,243.14347631]
[1751578949356,6.5494,152.64,152.61,243.14347631]
[1751578949557,7.88910849,152.63,152.62,3.07327631]
[1751578950055,7.88910849,152.63,152.57,47.075]
[1751578950056,10.9623848,152.63,152.57,47.075]
[1751578950263,7.88910849,152.62,152.53,565.72]
[1751578950461,6.5522,152.58,152.54,198.38647631]
[1751578950763,3.07327631,152.58,152.55,188.78]
[1751578951057,5.44739736,152.57,152.54,188.78]
[1751578951263,6.5523,152.57,152.54,188.78]
[1751578951561,3.07327631,152.57,152.54,188.78]
[1751578951763,4.81084925,152.59,152.53,799.26]
[1751578951964,7.80832699,152.58,152.53,799.26]
[1751578952164,6.553,152.56,152.54,188.78]
[1751578952360,10.9231943,152.61,152.54,188.78]
[1751578952665,6.5516,152.59,152.56,6.5524]
[1751578952867,5.41222302,152.58,152.57,188.78]
[1751578953061,2.38819855,152.61,152.57,193.59084925]
[1751578953262,2.38819855,152.62,152.57,188.78]
[1751578953457,5.41008621,152.61,152.57,188.78]
[1751578953658,6.5521,152.58,152.53,233.54]
[1751578953965,4.81084925,152.61,152.53,233.54]
[1751578954166,5.40987216,152.6,152.53,233.54]
[1751578954466,6.5522,152.57,152.54,6.5532]
[1751578955260,4.81084925,152.59,152.53,233.54]
[1751578955972,6.5529,152.56,152.53,240.0938]
[1751578958573,6.5524,152.57,152.54,6.5534]
[1751578959371,6.5524,152.57,152.55,6.5531]
[1751578959573,6.552,152.58,152.55,6.5531]
[1751578959774,6.552,152.58,152.56,189.36]
[1751578961080,6.5515,152.59,152.56,195.9126]
[1751578962379,6.5518,152.58,152.56,195.9126]
[1751578966877,6.5514,152.59,152.57,6.5521]
[1751578967379,6.5514,152.59,152.56,195.9125]
[1751578969886,6.5514,152.59,152.57,6.5521]
[1751578970087,6.5511,152.6,152.57,6.5521]
[1751578970282,6.5511,152.6,152.56,189.36]
[1751578970489,6.5511,152.6,152.57,6.552]
[1751578970787,6.5511,152.6,152.56,189.36]
[1751578970983,6.5511,152.6,152.57,6.552]
[1751578972301,6.5514,152.59,152.57,6.552]
[1751578978699,4.8087924,152.62,152.56,195.5725]
[1751578978899,4.80867603,152.62,152.56,195.5725]
[1751578979098,4.80867603,152.62,152.56,189.02]
[1751578979901,4.80867603,152.62,152.57,6.552]
[1751578981002,6.5515,152.59,152.57,6.552]
[1751578985901,6.5515,152.59,152.57,9.62948721]
[1751578986095,6.5515,152.59,152.57,6.552]
[1751578986297,6.5515,152.59,152.57,9.62948721]
[1751578987100,6.5515,152.59,152.57,3.07748721]
[1751578992701,6.11234505,152.62,152.58,3.07748721]
[1751578992905,11.21907815,152.64,152.6,3.07748721]
[1751578992906,5.4193779,152.61,152.6,3.07748721]
[1751578993706,5.42228909,152.61,152.6,3.07748721]